fUST/lending_fUST_20260116
["ID","MTS","AMOUNT","RATE_DAILY","PERIOD"]
[402179870,1768570296873,-500.0,0.00027397,120]
[402179871,1768570296933,-841.69,0.00027397,120]
[402179872,1768570296985,-500.0,0.00027397,120]
[402179873,1768570297038,-500.0,0.00027397,120]
[402179874,1768570297092,-500.0,0.00027397,120]
[402179875,1768570297146,-500.0,0.00027397,120]
[402179876,1768570297198,-500.0,0.00027397,120]
[402179877,1768570297251,-841.69,0.00027397,120]
[402179878,1768570297304,-500.0,0.00027397,120]
[402179879,1768570297355,-500.0,0.00027397,120]
[402179880,1768570297405,-500.0,0.00027397,120]
[402179881,1768570297456,-500.0,0.00027397,120]
[402179882,1768570297507,-500.0,0.00027397,120]
[402179883,1768570297557,-841.69,0.00027397,120]
[402179884,1768570297618,-500.0,0.00027397,120]
[402179885,1768570297890,-500.0,0.00027397,120]
[402179886,1768570297942,-500.0,0.00027397,120]
[402179887,1768570297995,-500.0,0.00027397,120]
[402179888,1768570298047,-841.69,0.00027397,120]
[402179889,1768570298099,-500.0,0.00027397,120]
[402179890,1768570298150,-500.0,0.00027397,120]
[402179891,1768570298203,-500.0,0.00027397,120]
[402179892,1768570298256,-500.0,0.00027397,120]
[402179893,1768570298309,-500.0,0.00027397,120]
[402179894,1768570298368,-841.69,0.00027397,120]
[402179895,1768570298421,-500.0,0.00027397,120]
[402179896,1768570298480,-500.0,0.00027397,120]
[402179897,1768570298537,-500.0,0.00027397,120]
[402179898,1768570298589,-500.0,0.00027397,120]
[402179899,1768570298640,-500.0,0.00027397,120]
[402179900,1768570298691,-841.69,0.00027397,120]
[402179901,1768570298741,-500.0,0.00027397,120]
[402179902,1768570298792,-500.0,0.00027397,120]
[402179903,1768570298842,-500.0,0.00027397,120]
[402179904,1768570298896,-500.0,0.00027397,120]
[402179905,1768570298954,-500.0,0.00027397,120]
[402179906,1768570299006,-841.69,0.00027397,120]
[402179907,1768570299060,-500.0,0.00027397,120]
[402179908,1768570299112,-500.0,0.00027397,120]
[402179909,1768570299162,-500.0,0.00027397,120]
[402179910,1768570299213,-500.0,0.00027397,120]
[402179911,1768570299262,-841.69,0.00027397,120]
[402179912,1768570299312,-500.0,0.00027397,120]
[402179913,1768570299360,-500.0,0.00027397,120]
[402179914,1768570299410,-500.0,0.00027397,120]
[402179915,1768570299460,-500.0,0.00027397,120]
[402179916,1768570299512,-356.27764536,0.00027397,120]
[402179917,1768570299559,-841.69,0.00027397,120]
[402179918,1768570299609,-500.0,0.00027397,120]
[402179919,1768570299656,-500.0,0.00027397,120]
[402179920,1768570299702,-500.0,0.00027397,120]
[402179921,1768570299748,-500.0,0.00027397,120]
[402179922,1768570299795,-500.0,0.00027397,120]
[402179923,1768570299845,-841.69,0.00027397,120]
[402179924,1768570299894,-500.0,0.00027397,120]
[402179925,1768570299943,-500.0,0.00027397,120]
[402179926,1768570300005,-500.0,0.00027397,120]
[402179927,1768570300055,-500.0,0.00027397,120]
[402179928,1768570300103,-500.0,0.00027397,120]
[402179929,1768570300154,-841.91913049,0.00027397,120]
[402179930,1768570300209,-500.0,0.00027397,120]
[402179931,1768570300264,-506.11553999,0.00027397,120]
[402179932,1768570300320,-500.0,0.00027397,120]
[402179933,1768570300375,-500.0,0.00027397,120]
[402179934,1768570300429,-500.0,0.00027397,120]
[402179935,1768570300477,-500.0,0.00027397,120]
[402179936,1768570300528,-500.0,0.00027397,120]
[402179937,1768570300581,-500.0,0.00027397,120]
[402179938,1768570300634,-500.0,0.00027397,120]
[402179939,1768570300683,-500.0,0.00027397,120]
[402179940,1768570300733,-500.0,0.00027397,120]
[402179941,1768570300786,-500.0,0.00027397,120]
[402179942,1768570300839,-500.0,0.00027397,120]
[402179943,1768570300893,-500.0,0.00027397,120]
[402179944,1768570300947,-500.0,0.00027397,120]
[402179945,1768570301001,-500.0,0.00027397,120]
[402179946,1768570301055,-500.0,0.00027397,120]
[402179947,1768570301109,-507.24,0.00027397,120]
[402179948,1768570301164,-500.0,0.00027397,120]
[402179949,1768570301218,-500.0,0.00027397,120]
[402179950,1768570301273,-500.0,0.00027397,120]
[402179951,1768570301325,-500.0,0.00027397,120]
[402179952,1768570301375,-507.24,0.00027397,120]
[402179953,1768570301425,-188.69340561,0.00027397,120]
[402179954,1768570301475,-500.0,0.00027397,120]
[402179955,1768570301523,-500.0,0.00027397,120]
[402179956,1768570301574,-500.0,0.00027397,120]
[402179957,1768570301621,-507.24,0.00027397,120]
[402179958,1768570301669,-500.0,0.00027397,120]
[402179959,1768570301714,-500.0,0.00027397,120]
[402179960,1768570301762,-500.0,0.00027397,120]
[402179961,1768570301810,-507.24,0.00027397,120]
[402179962,1768570301860,-500.0,0.00027397,120]
[402179963,1768570301911,-500.0,0.00027397,120]
[402179964,1768570301964,-434.51958275,0.00027397,120]
[402179965,1768570302017,-500.0,0.00027397,120]
[402179966,1768570302070,-507.24,0.00027397,120]
[402179967,1768570302123,-500.0,0.00027397,120]
[402179968,1768570302174,-500.0,0.00027397,120]
[402179969,1768570302222,-500.0,0.00027397,120]
[402179970,1768570302271,-507.24,0.00027397,120]
[402179971,1768570302320,-500.0,0.00027397,120]
[402179972,1768570302367,-500.0,0.00027397,120]
[402179973,1768570302413,-500.0,0.00027397,120]
[402179974,1768570302460,-500.0,0.00027397,120]
[402179975,1768570302509,-507.24,0.00027397,120]
[402179976,1768570302554,-220.87315645,0.00027397,120]
[402179977,1768570302598,-242.42548323,0.00027397,120]
[402179978,1768570302642,-290.93809042,0.00027397,120]
[402179979,1768570302685,-507.24,0.00027397,120]
[402179980,1768570302728,-507.24,0.00027397,120]
[402179981,1768570302996,-506.62545891,0.00027397,120]
[402179982,1768570303050,-507.24,0.00027397,120]
[402179983,1768570303103,-507.24,0.00027397,120]
[402179984,1768570303153,-507.24,0.00027397,120]
[402179985,1768570303202,-507.24,0.00027397,120]
[402179986,1768570303252,-507.24,0.00027397,120]
[402179987,1768570303301,-507.24,0.00027397,120]
[402179988,1768570303350,-530.06230671,0.00027397,120]
[402179989,1768570303399,-507.24,0.00027397,120]
[402179990,1768570303452,-507.24,0.00027397,120]
[402179991,1768570303507,-500.0,0.00027397,120]
[402179992,1768570303559,-500.0,0.00027397,120]
[402179993,1768570303612,-500.0,0.00027397,120]
[402179994,1768570303662,-500.0,0.00027397,120]
[402179995,1768570303713,-500.0,0.00027397,120]
[402179996,1768570303763,-500.0,0.00027397,120]
[402179997,1768570303816,-500.0,0.00027397,120]
[402179998,1768570303869,-500.0,0.00027397,120]
[402179999,1768570303922,-500.0,0.00027397,120]
[402180000,1768570303975,-500.0,0.00027397,120]
[402180001,1768570304029,-500.0,0.00027397,120]
[402180002,1768570304081,-500.0,0.00027397,120]
[402180003,1768570304134,-500.0,0.00027397,120]
[402180004,1768570304185,-500.0,0.00027397,120]
[402180005,1768570304236,-500.0,0.00027397,120]
[402180006,1768570304285,-355.71844612,0.00027397,120]
[402180007,1768570304333,-507.24,0.00027397,120]
[402180008,1768570304383,-536.13306577,0.00027397,120]
[402180009,1768570304434,-500.0,0.00027397,120]
[402180010,1768570304483,-507.24,0.00027397,120]
[402180011,1768570304532,-500.0,0.00027397,120]
[402180012,1768570304581,-507.24,0.00027397,120]
[402180013,1768570304628,-500.0,0.00027397,120]
[402180014,1768570304677,-507.24,0.00027397,120]
[402180015,1768570304729,-273.76363551,0.00027397,120]
[402180016,1768570304779,-507.24,0.00027397,120]
[402180017,1768570304832,-507.24,0.00027397,120]
[402180018,1768570304885,-507.24861631,0.00027397,120]
[402180019,1768570304938,-500.0,0.00027397,120]
[402180020,1768570304990,-500.0,0.00027397,120]
[402180021,1768570305044,-229.86400319,0.00027397,120]
[402180022,1768570305097,-500.0,0.00027397,120]
[402180023,1768570305151,-603.87164677,0.00027397,120]
[402180024,1768570305205,-500.0,0.00027397,120]
[402180025,1768570305258,-500.0,0.00027397,120]
[402180026,1768570305310,-500.0,0.00027397,120]
[402180027,1768570305359,-500.0,0.00027397,120]
[402180028,1768570305407,-553.81,0.00027397,120]
[402180029,1768570305459,-500.0,0.00027397,120]
[402180030,1768570305509,-553.81,0.00027397,120]
[402180031,1768570305567,-500.0,0.00027397,120]
[402180032,1768570305619,-553.81,0.00027397,120]
[402180033,1768570305670,-500.0,0.00027397,120]
[402180034,1768570305722,-553.81,0.00027397,120]
[402180035,1768570305773,-500.0,0.00027397,120]
[402180036,1768570305823,-553.81,0.00027397,120]
[402180037,1768570305876,-567.04,0.00027397,120]
[402180038,1768570305927,-553.81,0.00027397,120]
[402180039,1768570305981,-553.81,0.00027397,120]
[402180040,1768570306034,-1697.48,0.00027397,120]
[402180041,1768570306096,-553.81,0.00027397,120]
[402180042,1768570306158,-1697.48,0.00027397,120]
[402180043,1768570306224,-553.81,0.00027397,120]
[402180044,1768570306280,-1697.48,0.00027397,120]
[402180045,1768570306332,-553.81,0.00027397,120]
[402180046,1768570306381,-1697.48,0.00027397,120]
[402180047,1768570306431,-553.81,0.00027397,120]
[402180048,1768570306480,-1697.48,0.00027397,120]
[402180049,1768570306531,-553.81,0.00027397,120]
[402180050,1768570306581,-500.0,0.00027397,120]
[402180051,1768570306629,-1697.48,0.00027397,120]
[402180052,1768570306676,-553.81,0.00027397,120]
[402180053,1768570306725,-500.0,0.00027397,120]
[402180054,1768570306774,-1697.48,0.00027397,120]
[402180055,1768570306825,-553.81,0.00027397,120]
[402180056,1768570306875,-500.0,0.00027397,120]
[402180057,1768570306925,-1697.48,0.00027397,120]
[402180058,1768570306975,-553.81,0.00027397,120]
[402180059,1768570307024,-263.34556446,0.00027397,120]
[402180060,1768570307072,-500.0,0.00027397,120]
[402180061,1768570307121,-1697.48,0.00027397,120]
[402180062,1768570307170,-553.81,0.00027397,120]
[402180063,1768570307219,-1974.67,0.00027397,120]
[402180064,1768570307270,-500.0,0.00027397,120]
[402180065,1768570307318,-1697.48,0.00027397,120]
[402180066,1768570307364,-531.94819803,0.00027397,120]
[402180067,1768570307410,-553.81,0.00027397,120]
[402180068,1768570307456,-1974.67,0.00027397,120]
[402180069,1768570307502,-553.81,0.00027397,120]
[402180070,1768570307547,-500.0,0.00027397,120]
[402180071,1768570307594,-1697.48,0.00027397,120]
[402180072,1768570307638,-1974.67,0.00027397,120]
[402180073,1768570307682,-553.81,0.00027397,120]
[402180074,1768570307725,-500.0,0.00027397,120]
[402180075,1768570307769,-1697.48,0.00027397,120]
[402180076,1768570307990,-1974.67,0.00027397,120]
[402180077,1768570308044,-553.81,0.00027397,120]
[402180078,1768570308098,-1697.48,0.00027397,120]
[402180079,1768570308150,-500.0,0.00027397,120]
[402180080,1768570308201,-1974.67,0.00027397,120]
[402180081,1768570308252,-553.81,0.00027397,120]
[402180082,1768570308304,-1697.48,0.00027397,120]
[402180083,1768570308358,-500.0,0.00027397,120]
[402180084,1768570308413,-1974.67,0.00027397,120]
[402180085,1768570308467,-553.81,0.00027397,120]
[402180086,1768570308527,-1697.48,0.00027397,120]
[402180087,1768570308588,-500.0,0.00027397,120]
[402180088,1768570308644,-1974.67,0.00027397,120]
[402180089,1768570308699,-500.0,0.00027397,120]
[402180090,1768570308752,-553.81,0.00027397,120]
[402180091,1768570308806,-1697.48,0.00027397,120]
[402180092,1768570308862,-500.0,0.00027397,120]
[402180093,1768570308920,-1974.67,0.00027397,120]
[402180094,1768570308977,-522.30170593,0.00027397,120]
[402180095,1768570309035,-553.88012182,0.00027397,120]
[402180096,1768570309088,-500.0,0.00027397,120]
[402180097,1768570309141,-1697.48,0.00027397,120]
[402180098,1768570309196,-1568.63,0.00027397,120]
[402180099,1768570309250,-1974.67,0.00027397,120]
[402180100,1768570309308,-1697.48,0.00027397,120]
[402180101,1768570309360,-500.0,0.00027397,120]
[402180102,1768570309412,-1568.63,0.00027397,120]
[402180103,1768570309462,-1974.67,0.00027397,120]
[402180104,1768570309513,-500.0,0.00027397,120]
[402180105,1768570309564,-1697.48,0.00027397,120]
[402180106,1768570309616,-1974.67,0.00027397,120]
[402180107,1768570309667,-1568.63,0.00027397,120]
[402180108,1768570309716,-849.14,0.00027397,120]
[402180109,1768570309769,-500.0,0.00027397,120]
[402180110,1768570309819,-1697.48,0.00027397,120]
[402180111,1768570309870,-887.52914779,0.00027397,120]
[402180112,1768570331651,-2000.0,0.00014774,2]
[402180113,1768570331661,-2000.0,0.00014774,2]
[402180114,1768570331670,-2000.0,0.00014774,2]
[402180115,1768570331680,-2000.0,0.00014774,2]
[402180116,1768570331689,-1000.0,0.00014774,2]
[402180117,1768570331698,-1000.0,0.00014774,2]
[402180118,1768570331708,-475.0,0.00014774,2]
[402180119,1768570331717,-475.0,0.00014774,2]
[402180120,1768570331727,-609.84,0.00014774,2]
[402180121,1768570331736,-1000.0,0.00014774,2]
[402180122,1768570331745,-4999.999999,0.00015,2]
[402180123,1768570331755,-164.47,0.0001525,2]
[402180124,1768570331764,-170.245,0.00015394,2]
[402180125,1768570331775,-5000.0,0.00015605,2]
[402180126,1768570331784,-21068.76505786,0.00015606,2]
[402180127,1768570331798,-314.4785267,0.00015606,2]
[402180128,1768570332010,-978616.75641544,0.00015606,2]
[402180129,1768570332031,-2147.0,0.00015613,2]
[402180130,1768570332043,-629.0,0.00015613,2]
[402180131,1768570332053,-1367.0,0.00015613,2]
[402180132,1768570332063,-417.0,0.00015613,2]
[402180133,1768570332072,-715.0,0.00015613,2]
[402180134,1768570332082,-198.478,0.00015613,2]
[402180135,1768570332092,-151.0,0.000157,2]
[402180136,1768570332102,-151.0,0.000157,2]
[402180137,1768570332112,-151.0,0.000157,2]
[402180138,1768570332122,-151.0,0.000157,2]
[402180139,1768570332132,-151.0,0.000157,2]
[402180140,1768570332142,-151.0,0.000157,2]
[402180141,1768570332151,-2284.1270694,0.00015718,2]
[402180142,1768570332160,-359.2889661,0.00015718,2]
[402180143,1768570332170,-162.380719,0.0001577,2]
[402180144,1768570332179,-168.3888056,0.0001577,2]
[402180145,1768570332188,-174.61919141,0.0001577,2]
[402180146,1768570332197,-181.08010149,0.0001577,2]
[402180147,1768570332207,-273.45934565,0.0001577,2]
[402180148,1768570332447,-500.0,0.00015775,2]
[402180149,1768570332476,-1300.0,0.000158,2]
[402180150,1768570332487,-500.0,0.00015912,2]
[402180151,1768570332497,-580.47911139,0.00016,2]
[402180152,1768570332507,-215.94196055,0.00016,2]
[402180153,1768570332517,-500.0,0.00016049,2]
[402180154,1768570332529,-185.03,0.00016097,2]
[402180155,1768570332540,-1032748.36857933,0.0001615,2]
[402180156,1768570332826,-494.57928561,0.0001615,2]
[402180167,1768570753889,152.22,8.658e-05,2]
[402180168,1768570762434,-177.59,9.199e-05,2]
[402180169,1768570762457,-133.71056187,9.741e-05,2]
[402180170,1768570806183,-69.24943813,9.741e-05,2]
[402180171,1768570806207,-113.59056187,9.741e-05,2]
[402180172,1768570808790,-181.96,9.741e-05,2]
[402181377,1768571224529,224.94,7.175e-05,2]
[402181378,1768571224931,337.4,7.773e-05,2]
[402181379,1768571225334,449.87,8.371e-05,2]
[402181464,1768571237070,-249.95712582,8.969e-05,2]
[402181465,1768571239123,-249.67327297,8.969e-05,2]
[402181595,1768571302052,199.17,7.176e-05,2]
[402181596,1768571302462,298.76,7.774e-05,2]
[402181597,1768571303005,398.34,8.372e-05,2]
[402181598,1768571316216,-212.04275117,8.97e-05,2]
[402181599,1768571318387,-226.04067442,8.97e-05,2]
[402181602,1768571379479,176.36,7.122e-05,2]
[402181603,1768571379893,264.53,7.716e-05,2]
[402181604,1768571380293,352.71,8.31e-05,2]
[402181605,1768571380794,440.89,8.903e-05,2]
[402181663,1768571437947,-291.20901732,9.268e-05,2]
[402181664,1768571437956,-529.07,9.497e-05,2]
[402181665,1768571437965,-617.25,0.0001009,2]
[402181666,1768571437975,-705.43,0.00010684,2]
[402181667,1768571437986,-343.62664044,0.00011268,2]
[402181668,1768571437995,-447.11901647,0.00011277,2]
[402181669,1768571438013,-346.48098353,0.00011277,2]
[402181670,1768571438023,-881.78,0.00011871,2]
[402181671,1768571438033,-207.67538506,0.00013225,2]
[402181672,1768571438042,-396.04426355,0.00013268,2]
[402181673,1768571438053,-1000.0,0.00014731,2]
[402181674,1768571438062,-448.46188667,0.00015268,2]
[402181675,1768571438071,-2147.0,0.00015293,2]
[402181676,1768571438081,-629.0,0.00015293,2]
[402181677,1768571438091,-1367.0,0.00015293,2]
[402181678,1768571438100,-500.0,0.00015433,2]
[402181679,1768571438110,-500.0,0.00015472,2]
[402181680,1768571438119,-500.0,0.00015472,2]
[402181681,1768571438129,-500.0,0.00015472,2]
[402181682,1768571438139,-500.0,0.00015472,2]
[402181683,1768571438149,-440.36215023,0.00015472,2]
[402181684,1768571438159,-500.0,0.00015472,2]
[402181685,1768571438168,-571.77076445,0.00015472,2]
[402181686,1768571438178,-407.58693481,0.00015472,2]
[402181687,1768571438188,-500.0,0.00015472,2]
[402181688,1768571438197,-454.69346583,0.00015472,2]
[402181689,1768571438207,-500.0,0.00015472,2]
[402181690,1768571438217,-500.0,0.00015472,2]
[402181691,1768571438227,-500.0,0.00015472,2]
[402181692,1768571438237,-500.0,0.00015472,2]
[402181693,1768571438247,-500.0,0.00015472,2]
[402181694,1768571438257,-500.0,0.00015472,2]
[402181695,1768571438267,-500.0,0.00015472,2]
[402181696,1768571438277,-500.0,0.00015472,2]
[402181697,1768571438287,-500.0,0.00015472,2]
[402181698,1768571438297,-500.0,0.00015472,2]
[402181699,1768571438306,-500.0,0.00015472,2]
[402181700,1768571438316,-500.0,0.00015472,2]
[402181701,1768571438325,-511.41563703,0.00015472,2]
[402181702,1768571438335,-500.0,0.00015472,2]
[402181703,1768571438345,-500.0,0.00015472,2]
[402181704,1768571438355,-500.0,0.00015472,2]
[402181705,1768571438364,-500.0,0.00015472,2]
[402181706,1768571438373,-167.34637913,0.00015472,2]
[402181707,1768571438383,-414.75739515,0.00015472,2]
[402181708,1768571438393,-500.0,0.00015472,2]
[402181709,1768571438402,-500.0,0.00015472,2]
[402181710,1768571438411,-1957.856,0.00015475,2]
[402181711,1768571438420,-11539.96070172,0.00015475,2]
[402181712,1768571438590,-18460.03929828,0.00015475,2]
[402181713,1768571438599,-2150.738,0.00015475,2]
[402181714,1768571438608,-2030.296672,0.0001553,2]
[402181715,1768571438617,-500.0,0.0001557,2]
[402181716,1768571438626,-2105.41764886,0.00015585,2]
[402181717,1768571438635,-162.380719,0.00015597,2]
[402181718,1768571438644,-162.380719,0.00015597,2]
[402181719,1768571438654,-168.3888056,0.00015597,2]
[402181720,1768571438663,-174.61919141,0.00015597,2]
[402181721,1768571438672,-181.08010149,0.00015597,2]
[402181722,1768571438682,-187.78006525,0.00015597,2]
[402181723,1768571438691,-194.72792766,0.00015597,2]
[402181724,1768571438709,-201.93286099,0.00015597,2]
[402181725,1768571438720,-209.40437684,0.00015597,2]
[402181726,1768571438730,-217.15233878,0.00015597,2]
[402181727,1768571438740,-225.18697532,0.00015597,2]
[402181728,1768571438749,-233.51889341,0.00015597,2]
[402181729,1768571438759,-242.15909246,0.00015597,2]
[402181730,1768571438768,-251.11897888,0.00015597,2]
[402181731,1768571438777,-260.4103811,0.00015597,2]
[402181732,1768571438787,-270.0455652,0.00015597,2]
[402181733,1768571438797,-280.03725112,0.00015597,2]
[402181734,1768571438806,-290.39862941,0.00015597,2]
[402181735,1768571438816,-301.1433787,0.00015597,2]
[402181736,1768571438826,-445.202766,0.00015597,2]
[402181737,1768571438835,-151.0,0.000156,2]
[402181738,1768571438846,-151.0,0.000156,2]
[402181739,1768571438856,-151.0,0.000156,2]
[402181740,1768571438865,-151.0,0.000156,2]
[402181741,1768571438875,-151.0,0.000156,2]
[402181742,1768571438885,-151.0,0.000156,2]
[402181743,1768571438895,-5000.0,0.00015605,2]
[402181744,1768571438904,-282.87616544,0.00015605,2]
[402181745,1768571438914,-1000000.0,0.00015606,2]
[402181746,1768571438924,-2183.31810187,0.0001564,2]
[402181747,1768571438936,-2264.10087164,0.00015695,2]
[402181748,1768571438946,-500.0,0.00015705,2]
[402181749,1768571438956,-500.0,0.00015707,2]
[402181750,1768571438965,-500.0,0.00015707,2]
[402181751,1768571438975,-500.0,0.00015707,2]
[402181752,1768571438985,-500.0,0.00015707,2]
[402181753,1768571438994,-500.0,0.00015707,2]
[402181754,1768571439004,-500.0,0.00015707,2]
[402181755,1768571439014,-500.0,0.00015707,2]
[402181756,1768571439023,-500.0,0.00015707,2]
[402181757,1768571439033,-500.0,0.00015707,2]
[402181758,1768571439042,-500.0,0.00015707,2]
[402181759,1768571439052,-500.0,0.00015707,2]
[402181760,1768571439062,-532.48719323,0.00015707,2]
[402181761,1768571439075,-2347.87260389,0.0001575,2]
[402181762,1768571439093,-2434.74389024,0.00015805,2]
[402181763,1768571439108,-500.0,0.00015844,2]
[402181764,1768571439119,-2524.82941417,0.0001586,2]
[402181765,1768571439130,-359.2889661,0.0001587,2]
[402181766,1768571439140,-160.0,0.000159,2]
[402181767,1768571439149,-2284.1270694,0.00015902,2]
[402181768,1768571439159,-302.33134329,0.00015915,2]
[402181769,1768571439168,-500.0,0.00015981,2]
[402181770,1768571439178,-160.0,0.00016,2]
[402181771,1768571439187,-606.3389197,0.00016,2]
[402181772,1768571439198,-580.47911139,0.00016,2]
[402181773,1768571439207,-2425.35567881,0.00016,2]
[402181774,1768571439218,-31110.0,0.00016023,2]
[402181775,1768571439228,-2230.315306,0.00016023,2]
[402181776,1768571439238,-166.66666666,0.00016086,2]
[402181777,1768571439247,-500.0,0.00016118,2]
[402181778,1768571439257,-461.67526834,0.00016145,2]
[402181779,1768571439267,-928401.03105843,0.0001615,2]
[402181780,1768571439286,-482.24165179,0.0001615,2]
[402181781,1768571439297,-2951.36964325,0.0001615,2]
[402181782,1768571439308,-5745.74079194,0.0001615,2]
[402181810,1768571440227,-3e-08,0.0001615,2]
[402181870,1768571446179,-417.0,0.00015293,2]
[402181871,1768571446188,-229.23446986,0.00015375,2]
[402181872,1768571446199,-1365.53921141,0.00015375,2]
[402181873,1768571446236,-4436.8685399,0.00015375,2]
[402181874,1768571446246,-12357.53581555,0.0001615,2]
[402181875,1768571746519,185.89,8.727e-05,2]
[402181876,1768571817776,174.06,8.741e-05,2]
[402181877,1768571888761,162.99,8.714e-05,2]
[402181879,1768571958951,152.61,8.691e-05,2]
[402181944,1768572638034,-261.62218116,0.00010475,2]
[402181945,1768572638044,-308.71417377,0.00012475,2]
[402181946,1768572638054,-9722.0358999,0.00013906,2]
[402181947,1768572638064,-355.80616638,0.00014475,2]
[402181948,1768572638074,-5835.16881571,0.00015193,2]
[402181949,1768572638083,-500.0,0.00015233,2]
[402181950,1768572638092,-5000.0,0.0001524,2]
[402181951,1768572638102,-432.87616544,0.00015241,2]
[402181952,1768572638111,-500.0,0.00015241,2]
[402181953,1768572638120,-379.41748835,0.00015241,2]
[402181954,1768572638129,-501.26840411,0.00015241,2]
[402181955,1768572638138,-296.3718199,0.00015241,2]
[402181956,1768572638148,-271.15135002,0.00015241,2]
[402181957,1768572638157,-1000000.0,0.00015242,2]
[402181958,1768572638168,-629.0,0.00015293,2]
[402181959,1768572638177,-1367.0,0.00015293,2]
[402181960,1768572638186,-2147.0,0.00015293,2]
[402181961,1768572638196,-1957.856,0.00015342,2]
[402181962,1768572638205,-30000.0,0.00015342,2]
[402181963,1768572638214,-2150.738,0.00015342,2]
[402181964,1768572638223,-445.202766,0.00015364,2]
[402181965,1768572638238,-162.380719,0.00015364,2]
[402181966,1768572638247,-162.380719,0.00015364,2]
[402181967,1768572638256,-168.3888056,0.00015364,2]
[402181968,1768572638265,-174.61919141,0.00015364,2]
[402181969,1768572638274,-181.08010149,0.00015364,2]
[402181970,1768572638288,-187.78006525,0.00015364,2]
[402181971,1768572638297,-194.72792766,0.00015364,2]
[402181972,1768572638305,-201.93286099,0.00015364,2]
[402181973,1768572638314,-209.40437684,0.00015364,2]
[402181974,1768572638325,-217.15233878,0.00015364,2]
[402181975,1768572638334,-225.18697532,0.00015364,2]
[402181976,1768572638343,-233.51889341,0.00015364,2]
[402181977,1768572638352,-242.15909246,0.00015364,2]
[402181978,1768572638362,-251.11897888,0.00015364,2]
[402181979,1768572638371,-260.4103811,0.00015364,2]
[402181980,1768572638380,-270.0455652,0.00015364,2]
[402181981,1768572638390,-280.03725112,0.00015364,2]
[402181982,1768572638399,-290.39862941,0.00015364,2]
[402181983,1768572638409,-301.1433787,0.00015364,2]
[402181984,1768572638418,-500.0,0.0001537,2]
[402181985,1768572638428,-2030.296672,0.00015397,2]
[402181986,1768572638437,-151.0,0.000154,2]
[402181987,1768572638447,-151.0,0.000154,2]
[402181988,1768572638457,-151.0,0.000154,2]
[402181989,1768572638467,-151.0,0.000154,2]
[402181990,1768572638476,-151.0,0.000154,2]
[402181991,1768572638485,-151.0,0.000154,2]
[402181992,1768572638494,-293.91007087,0.000154,2]
[402181993,1768572638504,-2105.41764886,0.00015452,2]
[402181994,1768572638514,-500.0,0.00015473,2]
[402181995,1768572638523,-500.0,0.00015474,2]
[402181996,1768572638533,-2183.31810187,0.00015507,2]
[402181997,1768572638542,-500.0,0.00015507,2]
[402181998,1768572638551,-2264.10087164,0.00015562,2]
[402181999,1768572638561,-500.0,0.00015595,2]
[402182000,1768572638571,-500.0,0.00015605,2]
[402182001,1768572638582,-500.0,0.00015605,2]
[402182002,1768572638592,-500.0,0.00015605,2]
[402182003,1768572638601,-500.0,0.00015605,2]
[402182004,1768572638611,-500.0,0.00015605,2]
[402182005,1768572638621,-500.0,0.00015605,2]
[402182006,1768572638631,-500.0,0.00015605,2]